{"text_format":"1","workbook":"xlsx","n_sheets":4,"sheets":["Instructions and Notes","Nom EE Value by Type, IP,& Zone","Total nom EE values","Drop Down Lists"],"not_rendered":{"charts":0,"images":0,"macros":1,"external_links":0,"defined_names":30,"comments":0,"pivot_tables":0},"unopened":[],"bounds":{"document_bytes":16777216,"sheet_cells":100000,"rows_first":2000,"rows_last":500,"rows_between":2000,"halvings":0,"cell_chars":16384,"cell_head_chars":4096},"cells_cut":0,"cells_raw":0,"read":"whole","date_system":"1900"}

{"sheet":"Instructions and Notes","index":0,"n_rows":17,"n_cols":2,"rows_kept":17,"cut":false,"hidden":false,"merged":[[3,1,3,4],[4,1,4,4],[5,1,5,4],[6,1,6,4]]}
[]
[]
[null,"Instructions:"]
[null,"1.  This completed EE template should be included with the submission of the M&V Plan."]
[null,"2.  All data fields on \"Nom EE Value by Type,IP & Zone\" tab highlighted in red must be completed.  The Nominated EE Values and Capacity Performance (CP) Values in this template must be supported by the documentation in the EE M&V Plan."]
[null,"3.  In the table with column headings highlighted in purple on  \"Nom EE Value by Type,IP & Zone\" tab, please fill in the required information for each type of EE Installation (i.e., Installation Period, Zone/sub-zone, Nominated EE Value, and CP Value). The Type of EE Installation, Installation Period, Zone fields are all drop down boxes, please use one of the values from the drop down box for these fields.  "]
[null,"4. Click \"Calculate Summary\" button on \"Total nom EE values\" to see summary by zone by installation period."]
[]
[]
[]
[null,"Notes:"]
[null,"*EE Providers are required to itemize EE located in the AEP and DEOK zones into Kentucky and Non-Kentucky locations for the RERRA review process."]
[null,"**Nominated EE Value is the average demand reduction during EE Performance hours."]
[null,"*** CP Value is the lower of the winter and summer average demand reduction during the defined seasonal EE Performance Hours.  The CP value may not be greater than the Nominated EE Value."]
[null,"EE Performance Hour are defined as hours ending 15:00 through 18:00 EPT during all days from June 1 through August 31, inclusive, of such Delivery Year, that is not a weekend or federal holiday."]
[null,"Winter Hours are hours ending 8:00 through 9:00 EPT and hours ending 19:00 through 20:00 EPT during all days from January 1 through February 28, inclusive, of such Delivery Year, that is not a weekend or federal holiday."]
[null,"****A separate EE Resource is modeled in the eRPM system for each installation period and zone/sub-zonal LDA. "]

{"sheet":"Nom EE Value by Type, IP,& Zone","index":1,"n_rows":17,"n_cols":6,"rows_kept":17,"cut":false,"hidden":false,"merged":[]}
["TEMPLATE TO PROVIDE NOMINATED ENERGY EFFICIENCY VALUE & CAPACITY PERFORMANCE VALUE"]
[]
[]
["Submission Date:"]
[]
[null,"RPM Auction","Delivery Year"]
["M&V Plan Submittal for:","BASE RESIDUAL","2028/2029"]
[]
["Company Name:"]
["Company Shortname in eSuite:"]
["Name of Company Contact:"]
["Phone Number:"]
["Email Address:"]
[]
[]
["PROVIDE NOMINATED EE VALUE & CP VALUE BY EE INSTALLATION TYPE, INSTALLATION PERIOD, & ZONE:"]
["Type of EE Installation","If Type = Other, List Type of EE Installation","Installation Period","Zone/sub-zone*","Nominated EE Value (MW)**","CP Value (MW)***"]

{"sheet":"Total nom EE values","index":2,"n_rows":2,"n_cols":7,"rows_kept":2,"cut":false,"hidden":false,"merged":[]}
[]
["Delivery Year","Auction","Company","Installation Period","Zone/LDA","Total Nominated","CP Nominated"]

{"sheet":"Drop Down Lists","index":3,"n_rows":34,"n_cols":17,"rows_kept":34,"cut":false,"hidden":false,"merged":[]}
["RPM Auction","Delivery Year","Type of EE Installation","Installation Period","LOCATION","LDA","zone",null,"DOCS# 599951",{"$f":"'Nom EE Value by Type, IP,& Zone'!B7&\"_\"&deliveryear","v":"BASE RESIDUAL_2028/2029"},null,"RPM Auction","Delivery Year","Installation Period",null,null,{"$f":"IFERROR(INDEX($N$2:$N$25,SMALL(IF(J1=$K$2:$K$25,ROW($K$2:$K$25)-ROW($K$2)+1),ROW(1:1))),\"\")","v":""}]
["BASE RESIDUAL","2025/2026","Appliances","June 2021-May 2022","AECO","EMAAC","AECO",null,null,null,{"$f":"CONCATENATE(L2,\"_\",M2)","v":"BASE RESIDUAL_2025/2026"},"BASE RESIDUAL","2025/2026","2023/2024",null,{"$f":"IFERROR(INDEX($N$2:$N$15,SMALL(IF($J$1=$K$2:$K$15,ROW($K$2:$K$15)-ROW($K$2)+1),ROW(1:1))),\"\")","v":"2024/2025"}]
["FIRST INCREMENTAL","2026/2027","Building Envelope","June 2022-May 2023","AEP (KY)","RTO","AEP ",null,null,null,{"$f":"CONCATENATE(L3,\"_\",M3)","v":"BASE RESIDUAL_2025/2026"},"BASE RESIDUAL","2025/2026","2024/2025",null,{"$f":"IFERROR(INDEX($N$2:$N$15,SMALL(IF($J$1=$K$2:$K$15,ROW($K$2:$K$15)-ROW($K$2)+1),ROW(2:2))),\"\")","v":"2025/2026"}]
["SECOND INCREMENTAL","2027/2028","Building Management System Upgrades and Controls","June 2023-May 2024","AEP (Non-KY)",null,"AEP ",null,null,null,"THIRD INCREMENTAL_2024/2025","THIRD INCREMENTAL","2024/2025","2023/2024",null,{"$f":"IFERROR(INDEX($N$2:$N$15,SMALL(IF($J$1=$K$2:$K$15,ROW($K$2:$K$15)-ROW($K$2)+1),ROW(3:3))),\"\")","v":"2026/2027"}]
["THIRD INCREMENTAL","2028/2029","Heating, Ventilation, and Air Conditioning (HVAC)","June 2023-May 2025","APS","RTO","APS",null,null,null,"BASE RESIDUAL_2026/2027","BASE RESIDUAL","2026/2027","2023/2024",null,{"$f":"IFERROR(INDEX($N$2:$N$15,SMALL(IF($J$1=$K$2:$K$15,ROW($K$2:$K$15)-ROW($K$2)+1),ROW(4:4))),\"\")","v":"2027/2028"}]
[null,null,"Lighting (commercial/industrial)",null,"ATSI (excluding Cleveland LDA)","ATSI","ATSI",null,null,null,"BASE RESIDUAL_2026/2027","BASE RESIDUAL","2026/2027","2024/2025"]
[null,null,"Lighting (residential)",null,"Cleveland LDA","ATSI-CLEVELAND","ATSI",null,null,null,"BASE RESIDUAL_2026/2027","BASE RESIDUAL","2026/2027","2025/2026"]
[null,null,"Motors",null,"BGE","BGE","BGE",null,null,null,"THIRD INCREMENTAL_2025/2026","THIRD INCREMENTAL","2025/2026","2024/2025"]
[null,null,"Refrigeration",null,"COMED","COMED","COMED",null,null,null,"BASE RESIDUAL_2027/2028","BASE RESIDUAL","2027/2028","2024/2025"]
[null,null,"Variable Frequency Drives",null,"DAYTON","DAYTON","DAYTON",null,null,null,"BASE RESIDUAL_2027/2028","BASE RESIDUAL","2027/2028","2025/2026"]
[null,null,"Other",null,"DEOK (KY)","DEOK","DEOK",null,null,null,"BASE RESIDUAL_2027/2028","BASE RESIDUAL","2027/2028","2026/2027"]
[null,null,null,null,"DEOK (Non-KY)",null,"DEOK",null,null,null,"BASE RESIDUAL_2028/2029","BASE RESIDUAL","2028/2029","2024/2025"]
[null,null,null,null,"DOM","DOM","DOM",null,null,null,"BASE RESIDUAL_2028/2029","BASE RESIDUAL","2028/2029","2025/2026"]
[null,null,null,null,"DPL (excluding DPL SOUTH LDA)","DPL","DPL",null,null,null,"BASE RESIDUAL_2028/2029","BASE RESIDUAL","2028/2029","2026/2027"]
[null,null,null,null,"DPL SOUTH LDA","DPL-SOUTH","DPL",null,null,null,"BASE RESIDUAL_2028/2029","BASE RESIDUAL","2028/2029","2027/2028"]
[null,null,null,null,"DUQ","RTO","DUQ"]
[null,null,null,null,"EKPC","RTO","EKPC"]
[null,null,null,null,"JCPL","EMAAC","JCPL"]
[null,null,null,null,"PECO","EMAAC","PECO"]
[null,null,null,null,"PENELEC","MAAC","PENELEC"]
[null,null,null,null,"PEPCO","PEPCO","PEPCO"]
[null,null,null,null,"PSEG (excluding PS NORTH LDA)","PSEG","PSEG"]
[null,null,null,null,"PS NORTH LDA","PS-NORTH","PSEG"]
[null,null,null,null,"RECO","EMAAC","RECO"]
[null,null,null,null,"METED","MAAC","METED"]
[null,null,null,null,"PPL","PPL","PPL"]
[]
[]
[]
[null,null,null,null,null,null,null,null,null,null,{"$f":"IFERROR(INDEX($B$2:$B$11,SMALL(IF($D$2=$A$2:$A$11,ROW($A$2:$A$11)-ROW($A$2)+1),ROW(1:1))),\"\")","v":""}]
[]
[null,null,null,null,null,null,null,null,null,null,{"$f":"IFERROR(INDEX($N$2:$N$15,SMALL(IF($J$1=$K$2:$K$15,ROW($K$2:$K$15)-ROW($K$2)+1),ROW(2:2))),\"\")","v":""}]
[null,null,null,null,null,null,null,null,null,null,{"$f":"IFERROR(INDEX($N$2:$N$15,SMALL(IF($J$1=$K$2:$K$15,ROW($K$2:$K$15)-ROW($K$2)+1),ROW(3:3))),\"\")","v":""}]
[null,null,null,null,null,null,null,null,null,null,{"$f":"IFERROR(INDEX($N$2:$N$15,SMALL(IF($J$1=$K$2:$K$15,ROW($K$2:$K$15)-ROW($K$2)+1),ROW(4:4))),\"\")","v":""}]